[Event "79th Georgian Women-ch 2022"]
[Site "Tbilisi"]
[Date "2022.06.07"]
[Round "2.1"]
[White "Esadze, Tamari"]
[Black "Arabidze, Meri"]
[Result "0-1"]
[ECO "B85"]
[WhiteElo "1982"]
[BlackElo "2436"]
[Annotator "TA"]
[PlyCount "134"]
[EventDate "2022.06.06"]
[EventType "tourn"]
[EventCountry "GEO"]
[SourceTitle "playchess.com"]
[Source "ChessBase"]
[SourceQuality "1"]
[TimeControl "40/5400+30:1800+30"]

{[%evp 27,134,9,66,27,38,0,0,-4,0,-33,-33,-50,-50,-62,-62,-78,-59,-80,0,0,0,-68,-51,-62,0,-20,0,-56,-40,-79,-72,-68,-75,-74,-43,-43,-43,-71,-65,-85,-79,-85,-97,-95,-84,-150,-140,-136,-112,-127,-92,-92,-86,-116,-99,-90,-83,-75,-75,-141,-139,-125,-125,-136,-133,-134,-45,-134,-137,-154,-154,-154,-148,-135,-45,-52,0,-121,-121,-441,-435,-406,-19,-116,-114,-102,-3,-138,-143,-152,-129,-169,-136,-936,-936,-676,-598,-29957,-925,-29962,-29961,-7078,-6514,-6091,-5273,-29974,-29975,-29977,-29976]} 1. e4 {[%emt 0:00:01]} c5 {[%emt 0:00:05]} 2. Nf3 {[%emt 0:00:04]} e6 {[%emt 0:00:05]} 3. d4 {[%emt 0:00:04]} cxd4 {[%emt 0:00:06]} 4. Nxd4 {[%emt 0:00:02]} Nc6 {[%emt 0:00:05]} 5. Nc3 {[%emt 0:00:30]} Qc7 {[%emt 0:00:19]} 6. Be2 {[%emt 0:01:09]} Nf6 {[%emt 0:00:29]} 7. O-O {[%emt 0:02:08]} Be7 {[%emt 0:00:16]} 8. Be3 {[%emt 0:00:58]} O-O {[%emt 0:00:53]} 9. Kh1 {[%emt 0:04:35]} d6 {[%emt 0:01:57]} 10. f4 {[%emt 0:01:22]} a6 {[%emt 0:01:46]} 11. Qe1 {[%emt 0:02:02]} Nxd4 {[%emt 0:00:56]} 12. Bxd4 {[%emt 0:00:05]} b5 {[%emt 0:00:13]} 13. a3 {[%emt 0:00:51]} Bb7 {[%emt 0:00:05]} 14. Qg3 {[%emt 0:00:54]} g6 {[%emt 0:00:08]} (14... Bc6 $11) 15. Bf3 {[%emt 0:01:25] B85: Sicilian Scheveningen: 6 Be2 a6, lines with early Be3.} Rad8 {[%emt 0:14:52][%cal Ba8d8,Bd8d5,Bd5h5][%mdl 32] was the old line (15...Rac8).} 16. Rad1 {[%emt 0:12:02]} d5 {[%emt 0:15:40][%cal Rd5e4] [#]} 17. exd5 $146 {[%emt 0:08:13] The position is equal.} ({Predecessor:} 17. Be5 Qc4 18. Qg5 d4 19. Ne2 Bxe4 20. Bxe4 Nxe4 21. Qxe7 Qxe2 22. Rde1 d3 23. Qb4 Qxf1+ 24. Rxf1 d2 25. Rd1 Nf2+ 26. Kg1 Nxd1 27. Bd4 Nc3 {0-1 (27) Valcarcel,V (1825)-Federzoni,E (2041) Juiz de Fora 2019}) 17... Nxd5 {[%emt 0:02:07]} 18. Bxd5 {[%emt 0:04:34]} Bxd5 {[%emt 0:01:14]} 19. Nxd5 {[%emt 0:21:46]} Rxd5 {[%emt 0:00:07]} 20. c3 {[%emt 0:00:53]} Rfd8 {[%emt 0:01:09][%cal Oe7f6]} 21. Rde1 {[%emt 0:02:17]} a5 {[%emt 0:09:29]} 22. Qh3 {[%emt 0:11:26]} Rh5 {[%emt 0:07:44]} 23. Qf3 {[%emt 0:02:27]} Rhd5 {[%emt 0:01:07]} 24. Qh3 {[%emt 0:06:17]} Qb7 {[%emt 0:13:32]} 25. Qe3 {[%emt 0:08:02][%cal Of4f5]} Bd6 {[%emt 0:04:28]} (25... Bf8 $15) 26. Bf6 {[%emt 0:04:35]} (26. f5 $5 {[%cal Rf5e6]} e5 27. Bb6 $11) 26... Be7 {[%emt 0:01:50]} 27. Bd4 {[%emt 0:00:29][%cal Of4f5]} Bf8 {[%emt 0:00:54]} 28. Qf3 {[%emt 0:03:18]} Bg7 {[%emt 0:01:26]} 29. Bxg7 {[%emt 0:00:32]} Kxg7 {[%emt 0:00:02]} 30. Re5 {[%emt 0:00:52]} Qc7 {[%emt 0:02:54]} 31. Rxd5 {[%emt 0:01:06]} Rxd5 $15 {[%emt 0:00:10][%mdl 4096] Endgame KQR-KQR} 32. h3 {[%emt 0:00:25]} Qc4 {[%emt 0:03:07]} 33. Rf2 {[%emt 0:00:31]} Rd3 {[%emt 0:03:30]} 34. Qe2 {[%emt 0:00:11][%cal Oa3a4]} Qd5 {[%emt 0:01:04]} 35. Kh2 {[%emt 0:00:13]} h5 {[%emt 0:00:40]} 36. g3 {[%emt 0:01:10]} (36. Qf1 $142) 36... Rd1 $17 {[%emt 0:01:44][%csl Gd1][%cal Rd5h1]} 37. Rg2 {[%emt 0:00:02]} Kg8 {[%emt 0:01:24]} 38. h4 {[%emt 0:00:22]} Kh7 {[%emt 0:03:30]} 39. Qf2 {[%emt 0:00:42]} a4 {[%emt 0:05:07]} 40. Qe2 {[%emt 0:00:00]} Rd3 {[%emt 0:00:00]} (40... Kg7 {is more complex.} 41. Qf2 Kf6 42. Qe3 Kf5) 41. Qf2 {[%emt 0:02:48]} Kg8 {[%emt 0:05:15]} 42. Qe2 {[%emt 0:02:35]} Kf8 {[%emt 0:00:17]} (42... Kg7 {is interesting.} 43. Qc2 Kh6 44. Kh3 Rd1) 43. Qf2 {[%emt 0:00:20]} (43. Kh3 $142) 43... e5 $1 {[%emt 0:05:00]} 44. fxe5 {[%emt 0:02:58]} Qxe5 {[%emt 0:00:04]} 45. Qe2 {[%emt 0:04:57]} Re3 {[%emt 0:00:15] Black is much more active.} 46. Qd2 {[%emt 0:01:48]} Kg7 {[%emt 0:00:44]} 47. Qf2 {[%emt 0:03:50]} (47. Qd8 $15) 47... Re4 {[%emt 0:01:31]} 48. Kg1 {[%emt 0:02:33]} Re1+ {[%emt 0:03:41]} 49. Kh2 {[%emt 0:00:03]} Qe4 {[%emt 0:00:57] Inhibits Qf3.} 50. Qd2 {[%emt 0:04:03]} Kg8 {[%emt 0:04:05]} (50... Re3 $17) 51. Qd8+ $1 $15 {[%emt 0:00:51]} Kg7 {[%emt 0:00:07]} (51... Kh7 $1 $15) 52. Qd2 $1 $17 {[%emt 0:00:15]} Kh7 {[%emt 0:02:36] aiming for ...Qb1.} 53. Qd7 $2 {[%emt 0:03:09][%mdl 8192]} (53. Qc2 $17 {is more resistant.}) 53... Rf1 $1 $19 {[%emt 0:00:49] ...Qb1 is the strong threat.} 54. Qd2 {[%emt 0:01:58] [#]} ({Not} 54. Qxb5 Qe1 55. Qxf1 Qxf1) 54... Kg8 $2 $40 {[%emt 0:09:02][%mdl 128] Black mounts an attack.} ({Black should try} 54... Qb1 $1 $19 {[%csl Gb1][%cal Rf1h1]} 55. Rf2 Rh1+ 56. Kg2 Qe4+ 57. Rf3 Rb1) 55. Qd8+ {[%emt 0:00:32]} (55. Qe2 $11 {remains equal.} Qf5 56. Qc2) 55... Kg7 $17 {[%emt 0:00:14]} 56. Qd2 {[%emt 0:00:11]} Qb1 {[%emt 0:03:20]} (56... Re1 $17) 57. Rf2 {[%emt 0:04:12]} (57. Qd4+ $11 Kg8 58. Rf2 (58. Qd8+ {is a self mate.} Kh7)) 57... Rh1+ {[%emt 0:00:13]} 58. Kg2 {[%emt 0:00:03] Threatening mate with Qd4+.} Qe4+ {[%emt 0:00:04]} 59. Rf3 {[%emt 0:00:06]} Re1 {[%emt 0:00:07] Strongly threatening ...Re2+.} 60. Kf2 {[%emt 0:03:18][%mdl 8192] [#] Inhibits Re2+.} (60. Qd4+ $17 Qxd4 61. cxd4) 60... Rf1+ $3 $19 {[%emt 0:00:16][%mdl 512]} 61. Kxf1 {[%emt 0:00:03]} Qxf3+ {[%emt 0:00:09]} 62. Qf2 {[%emt 0:00:03]} Qxf2+ {[%emt 0:00:30]} 63. Kxf2 {[%emt 0:00:01] KP-KP} Kf6 {[%emt 0:00:10]} 64. Ke3 {[%emt 0:00:19]} Ke5 {[%emt 0:00:06] Threatens to win with ...f6.} 65. Kd3 {[%emt 0:01:43]} Kd5 {[%emt 0:00:20]} 66. Ke3 {[%emt 0:00:16]} Kc4 {[%emt 0:01:07]} 67. Kf4 {[%emt 0:01:04]} Kb3 {[%emt 0:00:30] Weighted Error Value: White=0.41/Black=0.28 (precise)} 0-1

[Event "79th Georgian Women-ch 2022"]
[Site "Tbilisi"]
[Date "2022.06.07"]
[Round "2.2"]
[White "Batsiashvili, Nino"]
[Black "Vakhania, Alexandra"]
[Result "1-0"]
[ECO "A46"]
[WhiteElo "2463"]
[BlackElo "2135"]
[Annotator "TA"]
[PlyCount "79"]
[EventDate "2022.06.06"]
[EventType "tourn"]
[EventCountry "GEO"]
[SourceTitle "playchess.com"]
[Source "ChessBase"]
[SourceQuality "1"]
[TimeControl "40/5400+30:1800+30"]

{[%evp 9,79,0,9,12,37,39,41,36,40,27,41,0,0,0,0,-7,0,0,0,4,33,34,41,0,0,0,18,10,8,8,29,31,57,35,68,50,68,0,16,0,317,328,516,513,482,493,29987,29988,29988,29989,29989,-216,29990,29991,29992,554,568,563,563,556,823,816,938,931,1123,1106,1039,996,977,971,962,954]} 1. d4 {[%emt 0:00:24] Gupta,A} e6 {[%emt 0:00:06]} 2. Bf4 {[%emt 0:00:48]} c5 {[%emt 0:00:52]} 3. e3 {[%emt 0:00:58]} Nf6 {[%emt 0:01:37]} 4. Nf3 {[%emt 0:02:00]} Nc6 {[%emt 0:00:34]} 5. Be2 {[%emt 0:08:05]} d5 {[%emt 0:04:39]} 6. O-O {[%emt 0:00:26] A46: 1 d4 Nf6 2 Nf3 e6: Torre, London and Colle Systems.} Bd6 {[%emt 0:02:13]} 7. dxc5 {[%emt 0:00:07]} Bxc5 {[%emt 0:00:23]} 8. c4 {[%emt 0:00:08] [#] White is slightly better.} d4 $146 {[%emt 0:03:09]} ({Predecessor:} 8... O-O 9. Nc3 dxc4 10. Bxc4 Qxd1 11. Rfxd1 b6 12. Ng5 Be7 13. Nge4 Rd8 14. Bb5 Bb7 15. Nd6 Bxd6 16. Bxd6 Rac8 17. f3 a6 18. Be2 {0-1 (47) Rapport,R (2700)-Aronian,L (2797) Caleta 2018 CBM 183 [Gupta,A]}) 9. b4 {[%emt 0:07:24]} Bxb4 {[%emt 0:01:14]} 10. exd4 {[%emt 0:00:04]} O-O {[%emt 0:01:09]} 11. Qd3 {[%emt 0:00:31]} b6 {[%emt 0:01:11]} 12. Nc3 {[%emt 0:03:33]} Ba6 {[%emt 0:11:04]} 13. Ne4 {[%emt 0:09:16]} h6 {[%emt 0:07:43]} 14. Rac1 {[%emt 0:03:23]} Nd5 {[%emt 0:01:44]} 15. Bg3 {[%emt 0:03:11]} Be7 {[%emt 0:05:33]} 16. Qd1 {[%emt 0:12:37]} Nf6 {[%emt 0:02:16]} 17. Nc3 {[%emt 0:00:20] Hoping for d5.} Nh5 {[%emt 0:02:11]} 18. d5 {[%emt 0:04:40]} Nxg3 {[%emt 0:02:20]} 19. hxg3 {[%emt 0:00:12]} Na5 {[%emt 0:03:09]} 20. dxe6 {[%emt 0:00:35]} fxe6 {[%emt 0:01:38]} 21. Qc2 {[%emt 0:04:20] aiming for Qe4.} (21. Bd3 $5 {[%cal Rd1e2]}) 21... Ba3 {[%emt 0:07:16]} ({Much less strong is} 21... Bxc4 22. Bxc4 Nxc4 23. Qe2 $16) 22. Rcd1 {[%emt 0:00:49]} Qf6 {[%emt 0:03:42]} 23. Bd3 {[%emt 0:04:16]} ({Better is} 23. Nb5 $14 Bxb5 24. cxb5) 23... Rac8 $11 {[%emt 0:02:35]} (23... Nxc4 $2 24. Bxc4 Bxc4 25. Ne4 $18) 24. Nh4 {[%emt 0:09:05] Black must now prevent Bh7+.} g5 $2 {[%emt 0:04:02][%mdl 8192] Black is on the road to losing.} (24... Nxc4 $11 {and Black is okay.} 25. Bh7+ Kh8 26. Ng6+ Kxh7 27. Nxf8+ Kg8) 25. Bh7+ $18 {[%emt 0:06:38]} Kg7 {[%emt 0:04:14]} (25... Kf7 $2 26. Rd7+ Be7 27. Nf5 $1 $18 {[%mdl 512]}) (25... Kh8 $142) 26. Rd7+ {[%emt 0:00:05]} Rf7 {[%emt 0:00:04]} 27. Ne4 {[%emt 0:01:09][%cal Bc3e4,Be4f6,Bf6h5][%mdl 32]} Rxc4 {[%emt 0:01:51]} (27... Qb2 $2 28. Nxg5 $1 {[%mdl 512]} Qxc2 29. Rxf7+ Kh8 30. Bxc2) (27... Rxd7 $18 28. Nxf6 Kxf6) 28. Nxf6 {[%emt 0:01:58][%mdl 64] Pin} Rxc2 {[%emt 0:00:08]} 29. Nh5+ {[%emt 0:02:57] Pair of Knights!} ({And not} 29. Bxc2 Kxf6 30. Rxf7+ Kxf7 $17) 29... Kf8 {[%emt 0:02:49] [#]} 30. Rd8+ $1 {[%emt 0:01:57]} ({Worse is} 30. Rxf7+ Kxf7 31. Bg6+ Kg8 32. Bxc2 Bxf1 33. Kxf1 gxh4 $11) 30... Ke7 {[%emt 0:00:28] [#]} 31. Rfd1 {[%emt 0:00:01][%cal Rh4g6]} e5 {[%emt 0:01:54]} (31... Bd3 32. R1xd3) 32. Bxc2 {[%emt 0:05:00]} (32. Nf5+ $142 Rxf5 33. R1d7+ Ke6 34. Bg8+ Rf7 35. Rxf7 Rc1+ 36. Kh2 Rh1+ 37. Kxh1 Bd6 38. Rff8+ Ke7 39. Rfe8#) 32... gxh4 {[%emt 0:02:16] White is clearly winning.} 33. R1d7+ {[%emt 0:00:04][%cal Bd1d7,Bd7g7,Bg7g3][%mdl 32]} Ke6 {[%emt 0:00:22]} 34. Ng7+ {[%emt 0:00:10]} Rxg7 {[%emt 0:01:18]} 35. Rxg7 {[%emt 0:00:02]} hxg3 {[%emt 0:00:08]} 36. Rxg3 {[%emt 0:00:14]} Bc5 {[%emt 0:00:33]} 37. Rg6+ {[%emt 0:00:08]} Ke7 {[%emt 0:00:10]} 38. Ra8 {[%emt 0:00:17]} Bb7 {[%emt 0:00:26] Inhibits Be4.} 39. Rxa7 {[%emt 0:00:20]} Kd8 {[%emt 0:00:21] [#]} 40. Be4 $1 {[%emt 0:00:00] Weighted Error Value: White=0.32/Black=0.59} 1-0

[Event "79th Georgian Women-ch 2022"]
[Site "Tbilisi"]
[Date "2022.06.07"]
[Round "2.3"]
[White "Gvetadze, Sofio"]
[Black "Melia, Salome"]
[Result "0-1"]
[ECO "B22"]
[WhiteElo "2306"]
[BlackElo "2368"]
[Annotator "TA"]
[PlyCount "98"]
[EventDate "2022.06.06"]
[EventType "tourn"]
[EventCountry "GEO"]
[SourceTitle "playchess.com"]
[Source "ChessBase"]
[SourceQuality "1"]
[TimeControl "40/5400+30:1800+30"]

{[%evp 13,98,16,22,15,20,16,23,21,20,-12,-2,-8,0,4,140,16,23,0,15,-47,-46,-47,-41,-60,-36,-52,-54,-91,-85,-81,-72,-97,-97,-183,-162,-176,-173,-291,-124,-116,-125,-127,-129,-139,-125,-175,-180,-179,-156,-179,-160,-290,-254,-266,-264,-292,-275,-294,-281,-283,-270,-358,-370,-499,-481,-525,-490,-637,-558,-490,-468,-460,-460,-441,-433,-1894,-2004,-1697,-1562,-5716,-4687,-29984,-29985,-29985,-1285,-29982,-29983]} 1. e4 {[%emt 0:00:03]} c5 {[%emt 0:00:12]} 2. Nf3 {[%emt 0:00:10]} e6 {[%emt 0:00:59]} 3. c3 {[%emt 0:01:09]} Nf6 {[%emt 0:00:38]} 4. e5 {[%emt 0:00:14]} Nd5 {[%emt 0:00:05]} 5. Bc4 {[%emt 0:00:39]} d6 {[%emt 0:01:33]} 6. d4 {[%emt 0:00:31]} cxd4 {[%emt 0:00:39]} 7. cxd4 {[%emt 0:00:04]} Be7 {[%emt 0:00:36]} 8. O-O {[%emt 0:00:21] B22: Sicilian: 2 c3.} O-O {[%emt 0:00:05]} 9. Qe2 {[%emt 0:04:07]} b6 {[%emt 0:00:40]} 10. Rd1 {[%emt 0:04:08] White has an edge.} Bb7 {[%emt 0:01:22]} 11. Nc3 {[%emt 0:00:36]} Nxc3 {[%emt 0:04:37]} 12. bxc3 {[%emt 0:00:05]} dxe5 {[%emt 0:16:20]} 13. Nxe5 {[%emt 0:00:49]} Qc8 {[%emt 0:10:07] [#]} (13... Nd7 $11 {keeps the balance.}) 14. Nxf7 $146 {[%emt 0:10:34]} ({Predecessor:} 14. Bf4 Nc6 15. Bd3 Nxe5 16. Bxe5 Qd8 17. Qh5 g6 18. Qh6 Bf6 19. Re1 Bxe5 20. Rxe5 {½-½ (20) Zubov,A (2615)-Paichadze,L (2566) Batumi 2015}) 14... Rxf7 $11 {[%emt 0:09:33]} 15. Bxe6 {[%emt 0:00:49]} Qf8 {[%emt 0:01:40][%cal Oe7d6]} 16. Bf4 {[%emt 0:44:59] [#]} (16. a4 $11) 16... Kh8 $1 $15 {[%emt 0:16:07]} 17. Bxf7 {[%emt 0:00:10]} Qxf7 {[%emt 0:00:05]} 18. Bg3 {[%emt 0:11:31]} Nd7 {[%emt 0:01:38][%mdl 1024] Black has compensation.} 19. c4 {[%emt 0:02:30]} Nf6 {[%emt 0:05:17]} 20. Qe5 {[%emt 0:03:49]} Rc8 {[%emt 0:03:20] Against Qc7} 21. d5 {[%emt 0:01:32]} Bc5 {[%emt 0:04:46]} 22. Qf5 {[%emt 0:01:29]} Rf8 {[%emt 0:06:19]} 23. Re1 {[%emt 0:00:45] [#]} (23. Kh1 $17) 23... Bc8 $1 $19 {[%emt 0:03:42]} 24. Qf3 {[%emt 0:02:29]} h6 {[%emt 0:05:00]} 25. h3 {[%emt 0:02:22]} (25. Kh1 $142) 25... Qh5 {[%emt 0:03:45]} (25... Qg6 $19 26. d6 Nh7) 26. Qxh5 $17 {[%emt 0:01:47]} Nxh5 {[%emt 0:00:10]} 27. Kh2 {[%emt 0:00:07]} Nxg3 {[%emt 0:00:33]} 28. fxg3 {[%emt 0:00:05]} Bd7 {[%emt 0:01:26] Black is more active.} 29. Re2 {[%emt 0:02:30]} (29. Rf1 $17 {was worth a try.}) 29... Kg8 {[%emt 0:00:45]} 30. Rae1 {[%emt 0:03:56]} a5 {[%emt 0:01:45][%cal Ba7a5,Ba5a4,Ba4a3][%mdl 32]} 31. Rb1 {[%emt 0:00:31]} a4 {[%emt 0:01:04]} 32. d6 {[%emt 0:00:13]} (32. g4 $17) 32... Rf7 {[%emt 0:00:58]} 33. Rd1 {[%emt 0:00:11]} Kf8 {[%emt 0:00:16]} 34. g4 {[%emt 0:00:25]} Rf6 {[%emt 0:00:32]} 35. Red2 {[%emt 0:00:29]} a3 {[%emt 0:00:34]} 36. Rd5 {[%emt 0:00:46]} Ke8 {[%emt 0:00:33]} 37. Kg3 {[%emt 0:00:14]} g5 {[%emt 0:00:37]} 38. R1d2 {[%emt 0:00:20]} Kd8 {[%emt 0:00:14]} 39. R5d3 {[%emt 0:00:48]} Bc6 {[%emt 0:00:50] Prevents Rf3.} 40. h4 {[%emt 0:00:00]} Be4 {[%emt 0:00:00] A strong pair of Bishops.} 41. Rb3 {[%emt 0:01:08]} Bxd6+ {[%emt 0:08:28]} 42. Kh3 {[%emt 0:00:37]} Kc7 {[%emt 0:00:13]} 43. Re3 {[%emt 0:00:27]} Bc6 {[%emt 0:04:43] aiming for ...Rf1.} 44. Rde2 {[%emt 0:00:35]} (44. Rxd6 $142 Kxd6 45. Rxa3) 44... Rf1 $19 {[%emt 0:02:23][%cal Rf1h1]} 45. Re1 {[%emt 0:00:12]} Rf2 {[%emt 0:00:08][%csl Gf2,LRa2,LRg2][%cal Rc6g2]} 46. hxg5 {[%emt 0:01:19]} hxg5 {[%emt 0:00:21][%csl Gf2][%cal Rc6g2]} 47. g3 {[%emt 0:00:09]} Rf7 {[%emt 0:02:19][%cal Rf7h7]} 48. Kh2 {[%emt 0:00:04]} Rh7+ {[%emt 0:00:07]} 49. Kg1 {[%emt 0:00:04]} Bc5 {[%emt 0:00:08] Weighted Error Value: White=0.90/Black=0.20 (precise)} 0-1

[Event "79th Georgian Women-ch 2022"]
[Site "Tbilisi"]
[Date "2022.06.07"]
[Round "2.4"]
[White "Tsotsonava, Elene"]
[Black "Lomaia, Diana"]
[Result "0-1"]
[ECO "B01"]
[WhiteElo "1915"]
[BlackElo "1846"]
[Annotator "TA"]
[PlyCount "92"]
[EventDate "2022.06.06"]
[EventType "tourn"]
[EventCountry "GEO"]
[SourceTitle "playchess.com"]
[Source "ChessBase"]
[SourceQuality "1"]
[TimeControl "40/5400+30:1800+30"]

{[%evp 9,92,62,72,63,71,28,49,51,95,93,95,38,45,31,75,75,75,13,95,98,101,89,87,85,107,46,43,52,52,52,40,0,0,-17,-17,-16,-16,-31,-20,-53,-34,-122,-113,-295,-304,-338,-324,-356,-314,-306,-288,-353,-225,-233,-214,-223,-234,-264,-263,-341,-341,-411,-377,-405,-402,-378,-387,-404,-325,-351,-268,-317,-254,-393,-391,-547,-421,-5156,-4710,-29970,-5575,-5122,-1810,-1366,-902]} 1. e4 {[%emt 0:00:03]} d5 {[%emt 0:00:08]} 2. exd5 {[%emt 0:00:05]} Qxd5 {[%emt 0:00:03]} 3. Nf3 {[%emt 0:00:09]} Nf6 {[%emt 0:00:31]} 4. Be2 {[%emt 0:01:09]} c5 {[%emt 0:05:39]} 5. Nc3 {[%emt 0:01:43]} Qd8 {[%emt 0:00:55]} 6. d4 {[%emt 0:05:06] B01: Scandinavian Defence.} e6 {[%emt 0:02:30]} 7. Bg5 {[%emt 0:09:00]} (7. Be3 $5 {[%cal Rd4c5]}) 7... Be7 {[%emt 0:02:56]} 8. dxc5 {[%emt 0:04:59] White is slightly better.} Qa5 {[%emt 0:09:06]} 9. O-O {[%emt 0:08:34]} O-O {[%emt 0:12:25]} 10. Bd3 {[%emt 0:05:20] [#]} (10. Ne4 $16) 10... Qxc5 $146 {[%emt 0:04:34]} ({Predecessor:} 10... Nc6 11. Qe2 Qxc5 12. Ne4 Nxe4 13. Qxe4 f5 14. Qh4 Bxg5 15. Nxg5 h6 16. Nf3 b5 {1-0 (42) Bengelsdorf,U-Strunz,L Donaueschingen 1985}) 11. Qe2 {[%emt 0:02:15]} g6 {[%emt 0:08:31]} 12. Rfe1 {[%emt 0:10:44]} Nc6 {[%emt 0:04:19]} 13. Rad1 {[%emt 0:01:00]} (13. h4 $16) 13... Rd8 {[%emt 0:03:59]} (13... Nd4 $1 $11 {keeps the balance.} 14. Qe3 Nxf3+ 15. gxf3 Qxe3 16. fxe3 b6) 14. h4 $16 {[%emt 0:05:44]} a6 {[%emt 0:03:36]} 15. Ne4 {[%emt 0:03:56]} Nxe4 {[%emt 0:00:34]} 16. Bxe4 {[%emt 0:03:38]} Bd7 {[%emt 0:07:49][%cal Bc8d7,Bd7c6,Bc6d5,Bd5a2,Ba2b1][%mdl 32]} 17. Bxe7 {[%emt 0:16:02]} (17. a3 $16 {And now b4 would win.} Bxg5 18. b4 (18. hxg5 Be8 $14)) 17... Qxe7 $14 {[%emt 0:00:41]} 18. h5 {[%emt 0:01:19]} Qf6 {[%emt 0:07:34]} 19. hxg6 {[%emt 0:04:47]} hxg6 {[%emt 0:00:19]} 20. Bxc6 {[%emt 0:00:37]} Bxc6 {[%emt 0:01:11]} 21. Qe5 {[%emt 0:00:09]} Kg7 {[%emt 0:03:52]} (21... Qf5 {keeps more tension.} 22. Nd4 Qxe5 23. Rxe5 Kg7) 22. Qxf6+ {[%emt 0:03:18]} Kxf6 {[%emt 0:00:03]} 23. Nd4 {[%emt 0:00:07]} Bd5 {[%emt 0:01:22]} 24. Rd3 {[%emt 0:00:15]} Rac8 {[%emt 0:00:48]} 25. f4 {[%emt 0:05:44] Prevents e5.} ({Better is} 25. c3 $15) 25... Bxa2 $17 {[%emt 0:07:55]} 26. b3 $2 {[%emt 0:00:37] [#] White does not recover from this.} (26. c3 $17 {keeps fighting.}) 26... Rxc2 $3 $19 {[%emt 0:00:30][%cal Oa2b3][%mdl 512]} 27. g4 {[%emt 0:03:36]} (27. Red1 Rb2) 27... Rd5 {[%emt 0:06:13]} 28. Ree3 {[%emt 0:02:09]} Rc1+ {[%emt 0:00:45]} 29. Kf2 {[%emt 0:00:10]} Bb1 {[%emt 0:00:51]} 30. Rd2 {[%emt 0:00:57]} Rdc5 {[%emt 0:00:53]} 31. Ne2 {[%emt 0:01:33]} R5c2 {[%emt 0:02:47]} 32. Rd7 {[%emt 0:00:13] [#]} Rc7 $1 {[%emt 0:00:35]} 33. Rd4 {[%emt 0:00:03]} R1c5 {[%emt 0:00:46]} 34. b4 {[%emt 0:00:34]} Rc4 {[%emt 0:00:16]} 35. Rb3 {[%emt 0:01:23]} Rxd4 {[%emt 0:01:36]} 36. Nxd4 {[%emt 0:00:02][%mdl 4096] Endgame KRB-KRN} Ba2 {[%emt 0:01:22]} 37. Rb2 {[%emt 0:00:05]} Bd5 {[%emt 0:00:11]} 38. b5 {[%emt 0:00:11]} axb5 {[%emt 0:00:40] White must now prevent ...Rc4.} 39. Rxb5 {[%emt 0:00:03]} Rc4 {[%emt 0:00:15]} 40. Ke3 {[%emt 0:00:00]} Rc3+ {[%emt 0:00:00]} 41. Kf2 {[%emt 0:01:04]} (41. Kd2 {only move.} Ra3 42. g5+ Ke7 43. Rc5) 41... g5 {[%emt 0:03:49]} 42. f5 {[%emt 0:01:26]} Ke5 {[%emt 0:02:22]} 43. fxe6 {[%emt 0:01:18]} (43. Ne2 $142 Rf3+ 44. Ke1) 43... Kxd4 {[%emt 0:01:58]} 44. e7 {[%emt 0:00:49]} Rc8 {[%emt 0:00:29]} (44... Rc2+ $142 45. Ke1 {[#]} Re2+ $3 {[%mdl 512]} 46. Kf1 Rxe7 47. Kg1 Re4 48. Kh2 Kc4 49. Rb6 Kc5 50. Rb1 b5 51. Rc1+ Rc4 52. Rg1 Rc2+ 53. Kg3 b4 54. Ra1 b3 55. Ra5+ Kc4 56. Ra4+ Kb5 57. Rd4 Kc5 58. Rd1 b2 59. Rb1 Be4 60. Rf1 Rc1 61. Kf2 Rxf1+ 62. Kxf1 b1=Q+ 63. Ke2 Qd3+ 64. Kf2 Qd1 65. Kg3 Qg1+ 66. Kh3 Qg2#) 45. Rb4+ {[%emt 0:00:14]} Ke5 {[%emt 0:00:25]} 46. Rb1 {[%emt 0:00:12]} Re8 {[%emt 0:00:09] Weighted Error Value: White=0.69/Black=0.47} 0-1

[Event "79th Georgian Women-ch 2022"]
[Site "Tbilisi"]
[Date "2022.06.07"]
[Round "2.5"]
[White "Javakhishvili, Lela"]
[Black "Purtseladze, Maka"]
[Result "1-0"]
[ECO "D37"]
[WhiteElo "2480"]
[BlackElo "2287"]
[Annotator "TA"]
[PlyCount "39"]
[EventDate "2022.06.06"]
[EventType "tourn"]
[EventCountry "GEO"]
[SourceTitle "playchess.com"]
[Source "ChessBase"]
[SourceQuality "1"]
[TimeControl "40/5400+30:1800+30"]

{[%evp 19,39,51,48,56,82,77,75,55,76,80,77,68,284,190,893,905,29992,772,29993,29994,29995,29996]} 1. d4 {[%emt 0:00:04]} d5 {[%emt 0:00:12]} 2. c4 {[%emt 0:00:12]} e6 {[%emt 0:00:03]} 3. Nc3 {[%emt 0:01:05]} Be7 {[%emt 0:00:08]} 4. Bf4 {[%emt 0:01:08]} Nf6 {[%emt 0:00:27]} 5. e3 {[%emt 0:00:26]} O-O {[%emt 0:00:54]} 6. Nf3 {[%emt 0:02:08]} c5 {[%emt 0:01:09]} 7. dxc5 {[%emt 0:01:41]} Bxc5 {[%emt 0:00:16]} 8. Qc2 {[%emt 0:04:06]} Nc6 {[%emt 0:01:08]} 9. Rd1 {[%emt 0:01:35]} Qa5 {[%emt 0:19:40]} 10. a3 {[%emt 0:00:12]} Ne4 {[%emt 0:15:41]} 11. cxd5 {[%emt 0:04:26] D37: Queen's Gambit Declined: 5 Bf4.} Nxc3 {[%emt 0:02:48]} 12. bxc3 {[%emt 0:00:59]} exd5 {[%emt 0:04:59]} 13. Rxd5 {[%emt 0:06:18] Strongly threatening Ng5. White is better.} (13. Ng5 $5 {[%cal Rc2h7]} g6 14. Rxd5 $14) 13... Ne7 {[%emt 0:00:36] [#]} 14. Ng5 $1 {[%emt 0:06:47][%csl Gg5][%cal Rc2h7]} g6 {[%emt 0:14:57]} 15. Rd2 $40 {[%emt 0:01:02][%mdl 128] White has some attack. White is more active.} Bxa3 $2 {[%emt 0:13:52]} (15... Bf5 $14 16. e4 h6) 16. Bc4 {[%emt 0:09:00] [#]} b5 $146 {[%emt 0:10:34]} (16... Kg7 17. O-O f6) ({Predecessor:} 16... Bf5 17. Qb3 Rac8 18. Ra2 Rxc4 19. Qxc4 Qc5 20. Qxc5 Bxc5 21. e4 Bd7 22. O-O f6 {1-0 (33) Gipslis,A-Shashin,B Moscow 1970}) 17. Bxf7+ $18 {[%emt 0:03:31]} Kg7 {[%emt 0:01:17]} 18. Be5+ {[%emt 0:06:29]} Kh6 {[%emt 0:00:04]} 19. Qe4 {[%emt 0:01:06][%cal Re4h4]} Nf5 {[%emt 0:01:10]} 20. Qf4 {[%emt 0:00:43] Black got outplayed after the opening.  Weighted Error Value: White=0.15 (very precise) /Black=1.14} 1-0